{"text_format":"3","workbook":"xlsx","n_sheets":2,"sheets":["Tablica za praćenje odgovora","Sažetak odgovora"],"not_rendered":{"charts":2,"defined_names":22},"read":"whole","date_system":"1900"}

{"sheet":"Tablica za praćenje odgovora","index":0,"n_rows":15,"n_cols":15,"rows_kept":15,"merged":[[0,3,0,4],[0,5,0,7],[1,3,1,14]]}
[{"$nulls":5},"SAŽETAK ODGOVORA"]
[null,"DATUM VJENČANJA",null,"tablica za praćenje poziva na vjenčanje"]
[null,{"$f":"TODAY()+283","v":"2020-01-11"},null,"IME I PREZIME GOSTA","POSLANO?","ODGOVOR","ZABAVA","GOST","ODNOS","ADRESA","GRAD","ŽUPANIJA","Poštanski broj","TELEFON","ADRESA E-POŠTE ZA KONTAKT"]
[null,"BROJ PREOSTALIH DANA",null,"Ime i prezime 1","Da","Da",1,"Budući bračni drug 1","Brat","Adresa","Grad","Županija","Poštanski broj","Telefonski broj","netko@example.com"]
[null,{"$f":"PreostaliDani","v":283},null,"Ime i prezime 2","Da","Ne",3,"Budući bračni drug 1","Prijatelj","Adresa","Grad","Županija","Poštanski broj","Telefonski broj","netko@example.com"]
[null,"PRISUTNI",null,"Ime i prezime 3","Da","Da",1,"Ostalo","Prijatelj","Adresa","Grad","Županija","Poštanski broj","Telefonski broj","netko@example.com"]
[null,{"$f":"UkupnoPozitivnihOdgovora","v":12},null,"Ime i prezime 4","Da","Ne",2,"Budući bračni drug 2","Prijatelj","Adresa","Grad","Županija","Poštanski broj","Telefonski broj","netko@example.com"]
[null,"NISU PRISUTNI",null,"Ime i prezime 5","Da","Da",2,"Budući bračni drug 2","Prijatelj","Adresa","Grad","Županija","Poštanski broj","Telefonski broj","netko@example.com"]
[null,{"$f":"UkupnoNegativnihOdgovora","v":6},null,"Ime i prezime 6","Da","Uvjetno prihvaćeno",null,"Ostalo","Prijatelj","Adresa","Grad","Županija","Poštanski broj","Telefonski broj","netko@example.com"]
[null,"NEPLAĆENO",null,"Ime i prezime 7","Da","Da",2,"Budući bračni drug 2","Prijatelj","Adresa","Grad","Županija","Poštanski broj","Telefonski broj","netko@example.com"]
[null,{"$f":"BezOdgovora","v":1},null,"Ime i prezime 8","Da","Ne",1,"Ostalo","Prijatelj","Adresa","Grad","Županija","Poštanski broj","Telefonski broj","netko@example.com"]
[{"$nulls":3},"Ime i prezime 9","Da","Da",4,"Budući bračni drug 1","Prijatelj","Adresa","Grad","Županija","Poštanski broj","Telefonski broj","netko@example.com"]
[{"$nulls":3},"Ime i prezime 10","Da","Da",2,"Budući bračni drug 1","Prijatelj","Adresa","Grad","Županija","Poštanski broj","Telefonski broj","netko@example.com"]
[{"$nulls":3},"Ime i prezime 11","Da",null,null,"Budući bračni drug 2","Brat","Adresa","Grad","Županija","Poštanski broj","Telefonski broj","netko@example.com"]
[{"$nulls":3},"UKUPNO:",{"$f":"COUNTIF('Tablica za praćenje odgovora'!$E$4:$E$14,\"Da\")","v":11},{"$f":"COUNTA('Tablica za praćenje odgovora'!$F$4:$F$14)","v":10},{"$f":"SUBTOTAL(109,tblPozivi[ZABAVA])","v":18}]

{"sheet":"Sažetak odgovora","index":1,"n_rows":11,"n_cols":15,"rows_kept":11,"merged":[[0,3,0,4],[0,5,0,8],[1,3,1,11],[2,3,6,3],[2,4,6,4],[7,3,11,3],[7,4,11,4]]}
[{"$nulls":3},"TABLICA ZA PRAĆENJE ODGOVORA"]
[null,"DATUM VJENČANJA",null,"sažetak odgovora",{"$nulls":10},"napomene"]
[null,{"$f":"DatumVjenčanja","v":"2020-01-11"},null,"DA","U ovoj se ćeliji nalazi grupirani trakasti grafikon s prikazanim vrstama gostiju za pozitivne odgovore."]
[null,"BROJ PREOSTALIH DANA",{"$nulls":3},"OSTALO",{"$f":"IFERROR(SUMIFS(tblPozivi[ZABAVA],tblPozivi[GOST],\"=Ostalo\",tblPozivi[ODGOVOR],\"Da\"),0)","v":1},{"$f":"tblPozivi[[#Totals],[POSLANO?]]","v":11}]
[null,{"$f":"PreostaliDani","v":283},{"$nulls":3},"BUDUĆI BRAČNI DRUG 2",{"$f":"IFERROR(SUMIFS(tblPozivi[ZABAVA],tblPozivi[GOST],\"=BUDUĆI BRAČNI DRUG 2\",tblPozivi[ODGOVOR],\"Da\"),0)","v":4},{"$f":"tblPozivi[[#Totals],[POSLANO?]]","v":11}]
[null,"PRISUTNI",{"$nulls":3},"BUDUĆI BRAČNI DRUG 1",{"$f":"IFERROR(SUMIFS(tblPozivi[ZABAVA],tblPozivi[GOST],\"=BUDUĆI BRAČNI DRUG 1\",tblPozivi[ODGOVOR],\"Da\"),0)","v":7},{"$f":"tblPozivi[[#Totals],[POSLANO?]]","v":11}]
[null,{"$f":"UkupnoPozitivnihOdgovora","v":12}]
[null,"NISU PRISUTNI",null,"NE","U ovoj se ćeliji nalazi grupirani trakasti grafikon s prikazanim vrstama gostiju za negativne odgovore."]
[null,{"$f":"UkupnoNegativnihOdgovora","v":6},{"$nulls":3},"OSTALO",{"$f":"IFERROR(SUMIFS(tblPozivi[ZABAVA],tblPozivi[GOST],\"=Ostalo\",tblPozivi[ODGOVOR],\"Ne\"),0)","v":1},{"$f":"tblPozivi[[#Totals],[POSLANO?]]","v":11}]
[null,"NEPLAĆENO",{"$nulls":3},"BUDUĆI BRAČNI DRUG 2",{"$f":"IFERROR(SUMIFS(tblPozivi[ZABAVA],tblPozivi[GOST],\"=BUDUĆI BRAČNI DRUG 2\",tblPozivi[ODGOVOR],\"Ne\"),0)","v":2},{"$f":"tblPozivi[[#Totals],[POSLANO?]]","v":11}]
[null,{"$f":"BezOdgovora","v":1},{"$nulls":3},"BUDUĆI BRAČNI DRUG 1",{"$f":"IFERROR(SUMIFS(tblPozivi[ZABAVA],tblPozivi[GOST],\"=BUDUĆI BRAČNI DRUG 1\",tblPozivi[ODGOVOR],\"Ne\"),0)","v":3},{"$f":"tblPozivi[[#Totals],[POSLANO?]]","v":11}]